bitfinex/quotes_SOLUSD_20260226
["timestamp","ask_amount","ask_price","bid_price","bid_amount"]
[1772131488863,0.46512784,85.639,85.605,11.98142653]
[1772131489369,0.46512784,85.639,85.611,0.29999999]
[1772131490260,0.46512784,85.637,85.611,0.29999999]
[1772131490765,0.46512784,85.637,85.612,11.68060552]
[1772131491751,0.46512784,85.637,85.603,11.98177488]
[1772131492552,0.46512784,85.635,85.61,10.12382808]
[1772131493461,0.46512784,85.635,85.588,11.68388091]
[1772131493653,0.46512784,85.629,85.588,11.68388091]
[1772131494052,0.46512784,85.629,85.59,10.12382808]
[1772131494677,0.46512784,85.627,85.591,11.68347139]
[1772131497873,0.46512784,85.625,85.592,0.29999999]
[1772131499964,0.46512784,85.623,85.592,0.29999999]
[1772131500272,0.46512784,85.619,85.585,0.29999999]
[1772131500477,11.67896851,85.624,85.591,0.29999999]
[1772131500775,0.46512784,85.623,85.591,0.29999999]
[1772131500955,0.46512784,85.623,85.59,10.12382808]
[1772131501150,0.46512784,85.623,85.582,40.89639277]
[1772131501151,0.46512784,85.619,85.58,10.12382808]
[1772131501362,0.46512784,85.609,85.572,0.29999999]
[1772131501955,0.46512784,85.607,85.58,10.42382807]
[1772131502151,0.46512784,85.607,85.581,0.29999999]
[1772131502778,10.12382808,85.62,85.581,0.29999999]
[1772131502982,1.96904,113.41,85.573,40.9007514]
[1772131502983,0.46512784,85.618,85.59,10.42382807]
[1772131503898,0.46512784,85.618,85.583,0.29999999]
[1772131504178,0.46512784,85.616,85.577,11.98538274]
[1772131504387,0.46512784,85.616,85.58,10.12382808]
[1772131506063,0.46512784,85.614,85.58,10.42382807]
[1772131506283,0.46512784,85.614,85.58,22.10866896]
[1772131507277,0.46512784,85.609,85.576,11.68541531]
[1772131507663,0.46512784,85.609,85.572,11.68603806]
[1772131507882,0.46512784,85.609,85.57,10.32382808]
[1772131507883,0.46512784,85.599,85.571,11.6862021]
[1772131508086,0.46512784,85.597,85.571,11.6862021]
[1772131508263,0.46512784,85.597,85.57,0.2]
[1772131508463,11.64764378,85.598,85.57,0.2]
[1772131508667,10.12382808,85.62,85.581,0.47602478]
[1772131508864,10.12382808,85.62,85.58,10.12382808]
[1772131509264,10.12382808,85.62,85.581,0.47602478]
[1772131509883,40.8787769,85.619,85.583,0.47294251]
[1772131510188,11.67965054,85.619,85.583,0.47294251]
[1772131510369,0.47562297,85.618,85.583,0.47294251]
[1772131512096,0.47562297,85.616,85.583,0.47294251]
[1772131512269,0.47562297,85.616,85.584,11.68442699]
[1772131513388,46.70610446,85.642,85.584,11.68442699]
[1772131513389,0.47562297,85.628,85.591,0.47294251]
[1772131513588,0.47562297,85.635,85.601,0.47294251]
[1772131514580,0.47562297,85.642,85.611,0.47294251]
[1772131516870,0.47562297,85.639,85.611,0.47294251]
[1772131518201,0.47562297,85.639,85.6,10.12382808]
[1772131518432,0.47562297,85.629,85.592,0.47294251]
[1772131518634,0.47562297,85.629,85.585,0.47294251]
[1772131518793,0.47562297,85.607,85.577,0.47294251]
[1772131519309,0.47562297,85.613,85.581,0.47294251]
[1772131519712,0.47562297,85.609,85.581,0.47294251]
[1772131519891,0.47562297,85.609,85.574,0.47294251]
[1772131521302,0.47562297,85.607,85.576,0.47294251]
[1772131522495,12.15613678,85.613,85.581,0.47294251]
[1772131522701,0.47562297,85.612,85.581,0.47294251]
[1772131523313,0.47562297,85.61,85.583,0.47294251]
[1772131523717,0.47562297,85.609,85.583,0.47294251]
[1772131524411,0.47562297,85.619,85.583,0.47294251]
[1772131524918,12.15540553,85.619,85.583,0.47294251]
[1772131525422,0.47562297,85.618,85.585,0.47294251]
[1772131525631,0.47562297,85.609,85.58,0.47294251]
[1772131527611,0.47562297,85.609,85.581,12.15777909]
[1772131527812,0.47562297,85.607,85.581,12.15777909]
[1772131528332,0.47562297,85.607,85.581,11.68483658]
[1772131528528,0.47562297,85.614,85.582,0.47294251]
[1772131528724,0.47562297,85.631,85.591,0.47294251]
[1772131529029,0.47562297,85.631,85.59,3.77848832]
[1772131529030,0.47562297,85.631,85.601,0.47294251]
[1772131529803,0.47562297,85.629,85.603,0.47294251]
[1772131530722,0.47562297,85.619,85.581,0.47294251]
[1772131530928,0.47562297,85.609,85.576,11.6854401]
[1772131531712,0.47562297,85.609,85.576,12.15838261]
[1772131532323,0.47562297,85.607,85.577,0.47294251]
[1772131533522,0.47562297,85.607,85.571,11.6862021]
[1772131533720,0.47562297,85.607,85.571,12.15914461]
[1772131534528,0.47562297,85.605,85.572,0.47294251]
[1772131535931,0.45131712,85.603,85.573,11.68592897]
[1772131536227,0.45131712,85.603,85.573,12.15615998]
[1772131537716,0.45131712,85.603,85.575,11.68565585]
[1772131538023,0.45131712,85.601,85.575,12.15588686]
[1772131538417,0.45131712,85.601,85.576,0.47023101]
[1772131539203,0.45131712,85.609,85.581,0.47023101]
[1772131539432,0.45131712,85.615,85.581,0.47023101]
[1772131540012,0.47474065,85.621,85.591,0.49217154]
[1772131540603,11.67825304,85.63,85.601,0.49217154]
[1772131540823,12.15098183,85.644,85.601,0.49217154]
[1772131541032,3.77848832,85.64,85.601,0.49217154]
[1772131541627,4.25322897,85.64,85.601,0.49217154]
[1772131542532,0.47474065,85.638,85.603,0.49217154]
[1772131543124,0.47474065,85.629,85.595,11.68290523]
[1772131543317,0.47474065,85.619,85.591,0.49217154]
[1772131543511,3.77848832,85.63,85.591,0.49217154]
[1772131543716,0.47474065,85.629,85.591,0.49217154]
[1772131544114,0.47474065,85.619,85.591,0.49217154]
[1772131544522,0.47474065,85.618,85.591,0.49217154]
[1772131545619,3.77848832,85.62,85.593,0.49217154]
[1772131545817,0.47474065,85.629,85.593,0.49217154]
[1772131547926,0.47474065,85.664,85.611,0.49217154]
[1772131548131,40.85634907,85.666,85.621,0.49217154]
[1772131548132,0.47474065,85.659,85.621,0.49217154]
[1772131549032,0.47474065,85.659,85.6,3.77848832]
[1772131549033,0.47474065,85.639,85.601,0.49217154]
[1772131550232,0.47474065,85.64,85.611,0.49217154]
[1772131551345,0.47474065,85.638,85.611,0.49217154]
[1772131551546,0.47474065,85.638,85.602,40.88689515]
[1772131551547,0.47474065,85.638,85.604,0.49217154]
[1772131552047,0.47474065,85.638,85.602,11.68197004]
[1772131552254,0.47474065,85.636,85.6,3.77848832]
[1772131552436,0.47474065,85.636,85.601,0.49217154]
[1772131553448,0.4644222,85.629,85.598,11.68251594]
[1772131553948,0.4644222,85.619,85.58,4.27101909]
[1772131554246,0.4644222,85.617,85.582,0.49253077]
[1772131554439,0.4644222,85.617,85.591,0.49253077]
[1772131554632,0.4644222,85.617,85.581,11.68483658]
[1772131555029,0.4644222,85.617,85.577,11.68535823]
[1772131555346,0.4644222,85.617,85.58,3.77848832]
[1772131555538,0.4644222,85.617,85.581,0.49253077]
[1772131556051,0.4644222,85.617,85.58,3.77848832]
[1772131557750,0.4644222,85.615,85.582,0.49253077]
[1772131560344,0.4644222,85.637,85.601,0.49253077]
[1772131560651,0.4644222,85.644,85.621,0.49253077]
[1772131561441,0.4644222,85.644,85.611,0.49253077]
[1772131561753,0.4644222,85.639,85.6,0.49253077]
[1772131561959,0.4644222,85.629,85.6,0.49253077]
[1772131562156,0.4644222,85.629,85.59,3.77848832]
[1772131562157,0.4644222,85.629,85.591,0.49253077]
[1772131562562,0.4644222,85.627,85.593,0.49253077]
[1772131565153,0.4644222,85.625,85.595,0.49253077]
[1772131566361,0.4644222,85.625,85.59,10.11797989]
[1772131566558,0.4644222,85.609,85.574,0.49253077]
[1772131566759,0.4644222,85.609,85.576,0.49253077]
[1772131567468,11.68115129,85.608,85.576,0.49253077]
[1772131567675,0.4644222,85.607,85.576,0.49253077]
[1772131567961,0.4644222,85.607,85.58,10.11797989]
[1772131570449,0.48181926,85.605,85.58,10.11797989]
[1772131570645,11.68074196,85.611,85.591,0.49401698]
[1772131571147,12.16256122,85.611,85.591,0.49401698]
[1772131571465,0.48181926,85.61,85.59,10.11797989]
[1772131572159,0.48181926,85.617,85.591,0.49401698]
[1772131572559,0.48181926,85.615,85.591,0.49401698]
[1772131573166,0.48181926,85.615,85.59,10.11797989]
[1772131573579,0.48181926,85.615,85.571,0.49401698]
[1772131573865,0.48181926,85.615,85.58,10.11797989]
[1772131574472,0.48181926,85.613,85.58,10.11797989]
[1772131574705,0.48181926,85.613,85.581,0.49401698]
[1772131577462,0.48181926,85.611,85.581,0.49401698]
[1772131578874,0.48181926,85.609,85.58,10.11797989]
[1772131579379,0.48181926,85.609,85.58,10.12241847]
[1772131580782,0.48181926,85.609,85.57,10.32241847]
[1772131581075,0.48181926,85.607,85.58,10.12241847]
[1772131581264,0.48181926,85.607,85.57,10.32241847]
[1772131581657,0.48181926,85.607,85.57,1e-08]
[1772131581856,0.48181926,85.607,85.511,104.5]
[1772131581857,0.48181926,85.579,85.524,0.49401698]
[1772131582161,0.48181926,85.559,85.53,10.12241847]
[1772131582468,0.48181926,85.559,85.531,0.49401698]
[1772131582779,0.48181926,85.566,85.54,10.12241847]
[1772131583180,0.48181926,85.564,85.531,0.49401698]
[1772131584576,0.48181926,85.564,85.53,10.12241847]
[1772131584976,0.48181926,85.559,85.52,10.12241847]
[1772131585170,0.48181926,85.557,85.52,10.61643545]
[1772131585355,0.48181926,85.557,85.52,4.27787653]
[1772131587179,0.48181926,85.557,85.512,0.49401698]
[1772131587384,3.78385955,85.56,85.512,0.49401698]
[1772131587385,0.48181926,85.555,85.512,0.49401698]
[1772131588081,0.48181926,85.549,85.51,3.78385955]
[1772131588383,0.48181926,85.549,85.511,0.49401698]
[1772131588677,0.48181926,85.549,85.51,3.78385955]
[1772131588678,0.48181926,85.549,85.521,0.49401698]
[1772131589467,0.48181926,85.547,85.521,0.49401698]
[1772131593299,0.48181926,85.545,85.521,0.49401698]
[1772131594184,0.48181926,85.562,85.53,3.78385955]
[1772131594382,5.36086188,85.581,85.51,29.23621462]
[1772131594383,0.48181926,85.56,85.531,0.49401698]
[1772131594688,0.48181926,85.559,85.531,0.49401698]
[1772131595680,40.9079221,85.558,85.531,0.49401698]
[1772131595889,0.4874171,85.557,85.531,0.49401698]
[1772131597285,11.68742256,85.563,85.532,0.49176055]
[1772131597668,11.68742256,85.563,85.541,0.49176055]
[1772131597983,0.4874171,85.562,85.541,0.49176055]
[1772131599966,0.48001819,85.56,85.531,0.4957868]
[1772131601889,0.48001819,85.548,85.517,0.4957868]
[1772131602986,0.48001819,85.548,85.519,0.4957868]
[1772131603970,11.68948063,85.547,85.521,0.4957868]
[1772131604174,12.16949882,85.547,85.521,0.4957868]
[1772131604371,3.78385955,85.56,85.521,0.4957868]
[1772131604372,11.68898713,85.551,85.521,0.4957868]
[1772131604576,11.68898713,85.551,85.531,0.4957868]
[1772131606389,0.48001819,85.558,85.531,0.4957868]
[1772131607498,0.48001819,85.578,85.541,0.4957868]
[1772131607687,0.48001819,85.577,85.541,0.4957868]
[1772131609903,0.48001819,85.575,85.541,0.4957868]
[1772131610102,0.48001819,85.575,85.543,0.4957868]
[1772131612234,11.68579241,85.574,85.551,0.4957868]
[1772131612782,0.48001819,85.573,85.538,0.4957868]
[1772131612994,0.48001819,85.573,85.541,0.4957868]
[1772131614183,0.48001819,85.571,85.541,0.4957868]
[1772131614991,0.48001819,85.571,85.551,0.4957868]
[1772131615694,0.48001819,85.571,85.541,0.4957868]
[1772131616080,0.48001819,85.571,85.54,3.78385955]
[1772131616281,40.90122936,85.572,85.535,0.4957868]
[1772131616282,0.48001819,85.569,85.535,0.4957868]
[1772131616697,11.68661181,85.568,85.535,0.4957868]
[1772131616907,0.48001819,85.567,85.535,0.4957868]
[1772131618385,0.48001819,85.565,85.535,0.4957868]
[1772131620501,0.48001819,85.563,85.54,3.78385955]
[1772131621101,0.48001819,85.563,85.54,4.27964635]
[1772131621300,3.78385955,85.56,85.524,0.4957868]
[1772131621614,0.48001819,85.559,85.524,0.4957868]
[1772131621907,0.48001819,85.559,85.52,3.78385955]
[1772131622108,0.48001819,85.559,85.521,0.4957868]
[1772131622606,0.48001819,85.557,85.521,0.4957868]
[1772131622997,0.48001819,85.549,85.515,0.4957868]
[1772131623307,0.48001819,85.549,85.521,0.4957868]
[1772131624302,3.78385955,85.58,85.541,0.4957868]
[1772131624502,0.48001819,85.589,85.541,0.4957868]
[1772131624711,0.48001819,85.587,85.541,0.4957868]
[1772131625203,0.48001819,85.587,85.541,12.18603826]
[1772131625407,0.48001819,85.587,85.542,0.4957868]
[1772131626789,0.48001819,85.585,85.544,0.4957868]
[1772131626989,0.48001819,85.585,85.551,0.4957868]
[1772131627688,11.68364885,85.59,85.571,0.4957868]
[1772131627913,0.48001819,85.589,85.56,3.78385955]
[1772131628201,9.0546959,85.629,85.543,40.91509532]
[1772131628202,0.48001819,85.611,85.581,0.4957868]
[1772131628907,0.48001819,85.609,85.581,0.4957868]
[1772131629098,0.48001819,85.609,85.571,0.4957868]
[1772131629295,0.48001819,85.609,85.571,11.6862021]
[1772131629509,0.48001819,85.609,85.572,0.4957868]
[1772131630208,0.48001819,85.609,85.58,3.78385955]
[1772131630507,11.68115129,85.608,85.581,0.45636649]
[1772131630711,0.4977118,85.607,85.574,0.45636649]
[1772131631095,0.4977118,85.607,85.58,3.78385955]
[1772131632192,0.4977118,85.607,85.573,0.45636649]
[1772131632608,0.4977118,85.605,85.575,0.45636649]
[1772131633109,0.4977118,85.605,85.571,0.45636649]
[1772131633699,0.4977118,85.605,85.563,0.45636649]
[1772131634114,40.88498468,85.606,85.56,3.78385955]
[1772131634115,0.4977118,85.599,85.56,3.78385955]
[1772131634322,0.4977118,85.599,85.561,0.45636649]
[1772131635219,0.4977118,85.597,85.562,0.45636649]
[1772131637220,0.4977118,85.595,85.564,0.45636649]
[1772131637916,0.4977118,85.595,85.571,0.45636649]
[1772131638115,11.68208354,85.602,85.581,0.45636649]
[1772131641205,11.67965054,85.619,85.591,0.45636649]
[1772131642113,0.1,85.64,85.6,3.77866747]
[1772131642114,0.4977118,85.623,85.6,3.77866747]
[1772131642314,0.1,85.64,85.601,0.45636649]
[1772131642315,0.4977118,85.632,85.601,0.45636649]
[1772131642621,0.4977118,85.632,85.6,3.77866747]
[1772131642622,0.4977118,85.679,85.624,0.45636649]
[1772131642820,0.4977118,85.683,85.66,3.77866747]
[1772131642997,0.4977118,85.683,85.652,0.45636649]
[1772131643198,0.4977118,85.683,85.65,3.77866747]
[1772131643419,0.4977118,85.681,85.65,3.77866747]
[1772131643612,0.4977118,85.681,85.66,3.77866747]
[1772131644292,0.4977118,85.681,85.645,0.45636649]
[1772131644727,0.4977118,85.679,85.645,0.45636649]
[1772131645523,0.4977118,85.679,85.647,0.45636649]
[1772131646528,11.66988041,85.691,85.651,0.45636649]
[1772131646705,0.4977118,85.689,85.651,0.45636649]
[1772131647546,0.4977118,85.687,85.653,0.45636649]
[1772131648611,3.77866747,85.68,85.636,0.45636649]
[1772131648825,3.77866747,85.67,85.636,0.45636649]
[1772131649769,3.77866747,85.67,85.637,0.45636649]
[1772131649770,11.67283381,85.669,85.637,0.45636649]
[1772131650632,0.4977118,85.668,85.637,0.45636649]
[1772131650936,0.4977118,85.659,85.629,0.45636649]
[1772131651414,0.4977118,85.649,85.615,0.45636649]
[1772131653007,0.4977118,85.647,85.617,0.45636649]
[1772131654430,0.4977118,85.639,85.601,0.45636649]
[1772131654607,4.27637927,85.63,85.601,0.45636649]
[1772131654810,0.4977118,85.629,85.601,0.45636649]
[1772131655005,0.4977118,85.629,85.595,0.45636649]
[1772131655335,0.4977118,85.627,85.587,0.45636649]
[1772131656224,0.49929784,85.619,85.587,0.45636649]
[1772131657533,11.67978696,85.618,85.589,0.48619561]
[1772131657927,12.1790848,85.618,85.589,0.48619561]
[1772131660818,0.45648242,85.617,85.589,0.48619561]
[1772131661019,0.45648242,85.617,85.577,29.21339449]
[1772131661020,0.45648242,85.609,85.573,0.47283078]
[1772131663429,0.45648242,85.599,85.566,0.47283078]
[1772131664033,0.45648242,85.579,85.549,0.47283078]
[1772131664528,0.45648242,85.579,85.541,0.47283078]
[1772131665319,0.45648242,85.569,85.541,0.47283078]
[1772131666820,0.45648242,85.569,85.523,3.69383402]
[1772131666821,0.45648242,85.559,85.531,0.47283078]
[1772131667018,0.45648242,85.559,85.521,0.47283078]
[1772131667215,4.23514989,85.55,85.521,0.47283078]
[1772131667837,11.68920735,85.549,85.521,0.47283078]
[1772131668334,0.45648242,85.548,85.523,0.47283078]
[1772131668512,0.45648242,85.548,85.516,0.47283078]
[1772131668710,3.77866747,85.54,85.516,0.47283078]
[1772131670141,3.77866747,85.54,85.518,0.47283078]
[1772131670433,3.77866747,85.56,85.518,0.47283078]
[1772131671420,4.23514989,85.56,85.518,0.47283078]
[1772131671934,4.23514989,85.56,85.521,0.47283078]
[1772131671935,0.45648242,85.559,85.521,0.47283078]
[1772131672438,11.68797774,85.558,85.523,0.47283078]
[1772131673438,12.14446016,85.558,85.523,0.47283078]
[1772131673611,11.68745455,85.562,85.523,0.47283078]
[1772131674016,3.77866747,85.56,85.523,0.47283078]
[1772131674627,12.14432355,85.559,85.525,0.47283078]
[1772131676035,3.77866747,85.54,85.507,0.47283078]
[1772131676630,0.45648242,85.538,85.509,0.47283078]
[1772131678953,3.77866747,85.53,85.502,0.47283078]
[1772131679254,0.45648242,85.536,85.502,0.47283078]
[1772131680732,0.45648242,85.558,85.511,0.47283078]
[1772131680929,0.45648242,85.549,85.512,11.69426513]
[1772131681229,0.45648242,85.519,85.5,1e-08]
[1772131681434,0.45648242,85.519,85.49,0.2]
[1772131681435,0.45648242,85.509,85.473,0.47283078]
[1772131681744,0.45648242,85.509,85.475,0.47283078]
[1772131681929,0.45648242,85.499,85.475,0.47283078]
[1772131682246,3.77866747,85.49,85.466,0.47283078]
[1772131682747,0.45648242,85.489,85.466,0.47283078]
[1772131682952,3.77866747,85.5,85.468,0.47283078]
[1772131683121,0.45648242,85.502,85.468,0.47283078]
[1772131683464,3.77866747,85.5,85.468,0.47283078]
[1772131683634,3.77866747,85.5,85.44,3.77866747]
[1772131683635,0.45648242,85.479,85.454,0.47283078]
[1772131684240,0.45648242,85.486,85.454,0.47283078]
[1772131684753,3.77866747,85.49,85.454,0.47283078]
[1772131684939,15.47603301,85.49,85.456,0.47283078]
[1772131685142,12.1532538,85.494,85.456,0.47283078]
[1772131685443,4.23514989,85.49,85.456,0.47283078]
[1772131685751,0.45648242,85.487,85.456,0.47283078]
[1772131686945,11.69782186,85.486,85.456,0.47283078]
[1772131687140,0.45648242,85.485,85.456,0.47283078]
[1772131687530,0.45648242,85.485,85.458,0.47283078]
[1772131688830,0.45648242,85.479,85.447,0.47283078]
[1772131689030,58.48065306,85.499,85.389,110.80483416]
[1772131689031,0.45648242,85.478,85.441,0.47283078]
[1772131689246,0.45648242,85.484,85.441,0.47283078]
[1772131689756,0.47339102,85.491,85.451,0.45075389]
[1772131690055,0.47339102,85.497,85.461,0.45075389]
[1772131690352,11.69399162,85.514,85.48,3.77866747]
[1772131690546,11.69399162,85.514,85.44,3.77866747]
[1772131690547,3.77866747,85.51,85.481,0.45075389]
[1772131690749,0.47339102,85.509,85.481,0.45075389]
[1772131690946,0.47339102,85.507,85.481,0.45075389]
[1772131691159,0.47339102,85.507,85.464,0.45075389]
[1772131691538,0.47339102,85.507,85.471,0.45075389]
[1772131692540,0.47339102,85.505,85.473,0.45075389]
[1772131695143,0.47339102,85.503,85.474,11.69946416]
[1772131695344,0.47339102,85.503,85.474,12.15021805]
[1772131695545,0.47339102,85.489,85.464,0.45075389]
[1772131697765,11.69754819,85.488,85.464,0.45075389]
[1772131697940,0.47339102,85.496,85.466,0.45075389]
[1772131699267,11.69574955,85.502,85.466,0.45075389]
[1772131699443,0.47339102,85.501,85.471,0.45075389]
[1772131699771,12.16929745,85.5,85.473,0.45075389]
[1772131699960,0.47339102,85.499,85.473,0.45075389]
[1772131701562,0.47339102,85.499,85.466,0.45075389]
[1772131701860,0.47339102,85.497,85.466,0.45075389]
[1772131702760,0.47339102,85.497,85.463,11.70095781]
[1772131703359,0.47339102,85.489,85.455,0.45075389]
[1772131703950,0.47339102,85.502,85.471,0.45075389]
[1772131705263,11.69549606,85.503,85.461,0.45075389]
[1772131705264,0.47339102,85.499,85.461,0.45075389]
[1772131705855,11.69618002,85.498,85.463,0.45075389]
[1772131706043,0.47339102,85.497,85.463,0.45075389]
[1772131707465,0.47339102,85.489,85.455,0.45075389]
[1772131707966,11.69754819,85.488,85.457,0.45075389]
[1772131708171,0.47339102,85.487,85.457,0.45075389]
[1772131708666,0.47339102,85.479,85.45,0.45075389]
[1772131709042,3.78818301,85.48,85.45,0.45075389]
[1772131709246,0.47339102,85.485,85.451,0.45075389]
[1772131709463,0.47339102,85.498,85.461,0.45075389]
[1772131710171,0.47339102,85.498,85.463,0.45075389]
[1772131711555,0.47339102,85.496,85.465,0.45075389]
[1772131712754,0.47339102,85.496,85.466,11.70055928]
[1772131712955,0.47339102,85.496,85.467,0.45075389]
[1772131713261,12.16998146,85.495,85.467,0.45075389]
[1772131713465,0.47339102,85.494,85.467,0.45075389]
[1772131714774,0.47339102,85.506,85.471,0.45075389]
[1772131715069,0.47339102,85.505,85.473,0.45075389]
[1772131715272,0.47339102,85.499,85.46,3.78818301]
[1772131715568,0.47339102,85.499,85.461,0.45075389]
[1772131717168,0.49115625,85.497,85.463,0.4858735]
[1772131717672,0.49115625,85.497,85.457,0.4858735]
[1772131718668,40.93663008,85.498,85.444,3.69383402]
[1772131718669,0.49115625,85.489,85.445,0.4858735]
[1772131718851,0.49115625,85.479,85.445,12.18927539]
[1772131719258,0.49115625,85.477,85.446,0.4858735]
[1772131721162,11.69809555,85.484,85.451,0.47980264]
[1772131721464,0.49098845,85.483,85.451,0.47980264]
[1772131722371,0.49098845,85.483,85.453,0.47980264]
[1772131723262,0.49098845,85.481,85.453,0.47980264]
[1772131724806,0.49098845,85.481,85.455,0.47980264]
[1772131724973,0.49098845,85.479,85.455,0.47980264]
[1772131725467,0.49098845,85.479,85.449,0.47980264]
[1772131726454,0.49098845,85.479,85.446,11.70321514]
[1772131727169,11.69891668,85.478,85.446,11.70321514]
[1772131727374,0.49098845,85.477,85.446,11.70321514]
[1772131728063,0.49098845,85.477,85.442,0.47980264]
[1772131728263,0.49098845,85.469,85.442,0.47980264]
[1772131728463,0.49098845,85.469,85.433,0.47980264]
[1772131731261,0.49098845,85.467,85.433,0.47980264]
[1772131732563,0.49098845,85.467,85.435,0.47980264]
[1772131733155,0.49098845,85.465,85.435,0.47980264]
[1772131735266,0.49098845,85.463,85.435,0.47980264]
[1772131736368,0.49098845,85.461,85.43,11.90543875]
[1772131736573,0.49098845,85.459,85.43,0.2]
[1772131736969,0.49098845,85.449,85.43,0.2]
[1772131737476,0.49098845,85.459,85.432,0.47980264]
[1772131738478,0.49098845,85.457,85.434,0.47980264]
[1772131738668,11.70117053,85.462,85.434,0.47980264]
[1772131738974,0.49098845,85.471,85.441,0.47980264]
[1772131740473,11.7000117,85.47,85.443,0.47980264]
[1772131741381,11.7000117,85.47,85.43,0.2]
[1772131741382,0.49098845,85.469,85.431,0.47980264]
[1772131741879,0.49098845,85.459,85.43,0.2]
[1772131742267,0.49098845,85.459,85.432,0.47980264]
[1772131742774,0.49098845,85.459,85.434,0.47980264]
[1772131743084,11.70106539,85.463,85.434,0.47980264]
[1772131743274,0.49098845,85.462,85.434,0.47980264]
[1772131746784,0.49098845,85.462,85.435,11.70480482]
[1772131746985,11.69897171,85.478,85.441,0.47980264]
[1772131747378,12.18996016,85.478,85.441,0.47980264]
[1772131747579,0.49098845,85.477,85.441,0.47980264]
[1772131748286,0.49098845,85.477,85.451,0.47980264]
[1772131748787,11.69823239,85.483,85.451,0.47980264]
[1772131748992,0.49098845,85.492,85.461,0.47980264]
[1772131749370,0.49098845,85.499,85.461,0.47980264]
[1772131749985,11.69604322,85.499,85.461,0.47980264]
[1772131750173,0.46028898,85.498,85.461,0.47980264]
[1772131750895,0.46028898,85.496,85.461,0.47980264]
[1772131751491,0.46028898,85.496,85.451,11.70261319]
[1772131751678,0.46028898,85.496,85.451,12.19948276]
[1772131751880,0.46028898,85.496,85.452,0.49686957]
[1772131753083,0.46028898,85.494,85.453,12.19920886]
[1772131753484,0.46028898,85.489,85.45,3.78818301]
[1772131754498,0.46028898,85.489,85.46,3.78818301]
[1772131754693,0.46028898,85.489,85.461,0.49686957]
[1772131755678,0.46028898,85.487,85.462,11.70110692]
[1772131756096,0.46028898,85.487,85.462,12.19797649]
[1772131756476,0.46028898,85.487,85.463,0.49686957]
[1772131756676,11.69711138,85.492,85.47,4.28505258]
[1772131756981,0.46028898,85.503,85.48,3.78818301]
[1772131757186,0.46028898,85.503,85.475,0.49686957]
[1772131757382,0.46028898,85.499,85.466,0.49686957]
[1772131757696,0.46028898,85.487,85.452,12.19923211]
[1772131758699,0.46028898,85.487,85.453,0.49686957]
[1772131758899,0.46028898,85.487,85.461,0.49686957]
[1772131759801,0.46028898,85.487,85.462,11.70110692]
[1772131760499,0.46028898,85.487,85.462,12.19797649]
[1772131760803,0.46028898,85.487,85.463,0.49686957]
[1772131761194,0.46028898,85.493,85.47,3.78818301]
[1772131761391,0.46028898,85.493,85.471,0.49686957]
[1772131761599,0.46028898,85.508,85.481,0.49686957]
[1772131761906,0.46028898,85.506,85.481,0.49686957]
[1772131762199,0.46028898,85.506,85.482,12.19523881]
[1772131762393,0.46028898,85.506,85.483,0.49686957]
[1772131763000,0.46028898,85.506,85.473,0.49686957]
[1772131763703,0.46028898,85.506,85.481,0.49686957]
[1772131763914,0.46028898,85.506,85.48,3.7879108]
[1772131764110,0.46028898,85.504,85.482,11.69836924]
[1772131766792,11.69468353,85.509,85.483,0.49686957]
[1772131766986,0.46028898,85.509,85.483,0.49686957]
[1772131768092,3.7879108,85.54,85.5,4.28478037]
[1772131768293,3.7879108,85.54,85.501,0.49686957]
[1772131769192,40.91700861,85.539,85.501,0.49686957]
[1772131769708,40.91700861,85.539,85.501,12.1925987]
[1772131770111,0.46028898,85.538,85.501,12.1925987]
[1772131770716,0.46028898,85.538,85.501,0.49686957]
[1772131771389,0.46028898,85.536,85.501,0.49686957]
[1772131771810,0.46028898,85.536,85.51,3.7879108]
[1772131772609,0.46028898,85.536,85.511,0.49686957]
[1772131772799,0.46028898,85.544,85.52,4.28478037]
[1772131772999,0.46028898,85.544,85.521,0.49686957]
[1772131773401,6.10315291,85.574,85.485,3.69383402]
[1772131773402,0.46028898,85.542,85.507,0.49686957]
[1772131773598,0.46028898,85.542,85.504,11.69529343]
[1772131773806,0.46028898,85.542,85.501,0.49686957]
[1772131774823,0.46028898,85.542,85.503,0.49686957]
[1772131776015,0.48821623,85.54,85.503,0.49686957]
[1772131776604,0.48821623,85.54,85.505,0.46344221]
[1772131776924,0.48821623,85.539,85.505,0.46344221]
[1772131778215,0.48821623,85.537,85.505,0.46344221]
[1772131779202,0.48821623,85.537,85.511,0.46344221]
[1772131780729,40.91748696,85.538,85.5,3.7879108]
[1772131780730,0.47623585,85.535,85.504,0.46684426]
[1772131781219,0.47623585,85.535,85.511,0.46684426]
[1772131782517,11.69098391,85.536,85.511,0.46684426]
[1772131783219,0.47623585,85.558,85.531,0.46684426]
[1772131783598,0.47623585,85.558,85.521,0.46684426]
[1772131784019,11.68784113,85.559,85.531,0.46684426]
[1772131784321,0.47623585,85.558,85.531,0.46684426]
[1772131785305,0.47623585,85.556,85.531,0.46684426]
[1772131785625,0.47623585,85.556,85.525,0.46684426]
[1772131785801,0.47623585,85.556,85.531,0.46684426]
[1772131786121,11.68811435,85.557,85.531,0.46684426]
[1772131787324,0.47623585,85.556,85.531,0.46684426]
[1772131787821,0.47623585,85.554,85.525,0.46684426]
[1772131788024,0.47623585,85.554,85.525,12.15931139]